Cogmind - Beta 13 @@@ ROGUE MODE // 2024.05.18 @ 20:23:40 Player: jonasanoj Result: Destroyed by D8-UXS(R) with Subdweller Laser Performance ------------- Evolutions (0) 0 Regions Visited (3) 600 Robots Destroyed (20) 100 Value Destroyed (462) 462 Prototype IDs (1) 20 Alien Tech Used (0) 0 Bonus (0) 0 TOTAL SCORE: 1182 Bonus ------- None Cogmind --------- Core Integrity 0/250 Matter 276/300 Energy 265/265 System Corruption 2% Temperature Cool (6) Movement Treading (160) Location -10/Subcaves Parts ------- > --- POWER (1) -------- Improved Ion Engine > --- PROPULSION (2) --- Light Treads Spiked Treads > --- UTILITY (2) ------ Large Storage Unit Subdweller Optics > --- WEAPON (2) ------- Battle Rifle Barrage Gun > --- INVENTORY (15) --- Improved Ion Engine Improved Ion Engine Subdweller Power Source Makeshift Leg Improved Flight Unit Improved Flight Unit Improved Flight Unit Improved Flight Unit Improved Flight Unit Sensor Array Propulsion Shielding Beam Cannon Light Cannon Datajack Scrap Shield Fragment (48) Peak State ------------ > --- POWER ------------ Improved Ion Engine > --- PROPULSION ------- Carbon-fiber Leg Makeshift Leg > --- UTILITY ---------- Large Storage Unit Subdweller Optics > --- WEAPON ----------- Battle Rifle Barrage Gun > --- INVENTORY -------- Improved Ion Engine Improved Ion Engine Subdweller Power Source Carbon-fiber Leg Improved Flight Unit Improved Flight Unit Improved Flight Unit Improved Flight Unit Improved Flight Unit Sensor Array Propulsion Shielding Beam Cannon Light Cannon Datajack Scrap Shield Fragment [Rating: 20] Favorites ----------- Power Improved Ion Engine Engine Improved Ion Engine Propulsion Light Treads Treads Light Treads Leg Carbon-fiber Leg Flight Unit Improved Flight Unit Utility Large Storage Unit Device Subdweller Optics Storage Large Storage Unit Processor Visual Processing Unit Weapon Assault Rifle Energy Gun EM Pulse Gun Ballistic Gun Assault Rifle Special Weapon Mining Laser Build | -11 -10 -10 -10 ------- Run | Yrd Mat Min Sub Slots Evolved . | . . . . Power . | . . . . Propulsion . | . . . . Utility . | . . . . Weapon . | . . . . Parts Attached 30 | 6 12 4 8 Power 2 | 1 1 . . Engine 2 | 1 1 . . Core . | . . . . Reactor . | . . . . Propulsion 12 | 2 4 3 3 Treads 8 | 2 3 1 2 Leg 3 | . . 2 1 Wheel . | . . . . Hover . | . . . . Flight 1 | . 1 . . Utility 7 | 1 4 1 1 Device 2 | . 1 . 1 Storage 3 | 1 2 . . Processor 2 | . 1 1 . Hackware . | . . . . Protection . | . . . . Artifact . | . . . . Weapon 9 | 2 3 . 4 Energy Gun 1 | 1 . . . Energy Cannon . | . . . . Ballistic Gun 7 | 1 2 . 4 Ballistic Cannon . | . . . . Launcher . | . . . . Special Weapon 1 | . 1 . . Impact Weapon . | . . . . Slashing Weapon . | . . . . Piercing Weapon . | . . . . Special Melee Weapon . | . . . . Unidentified Prototypes 1 | . 1 . . Parts Lost 2 | . 2 . . Power . | . . . . Propulsion . | . . . . Utility . | . . . . Weapon 2 | . 2 . . Highest Loss Streak 1 | . 1 . . To Critical Strikes . | . . . . Average Slot Usage (%) 99 | . 98 100 98 Engine 14 | . 14 14 14 Treads 18 | . 28 10 8 Leg 9 | . . 17 19 Device 2 | . . . 6 Storage 14 | . 14 14 14 Processor 11 | . 12 14 6 Energy Gun 3 | . 7 . . Ballistic Gun 22 | . 17 28 28 Special Weapon 1 | . 2 . . Naked Turns . | . . . . Heaviest Build 34 | 14 30 30 34 Greatest Support 40 | 40 40 40 40 Greatest Overweight (x) 2 | 2 . 1 1 Average Overweight (x) . | . . . . Largest Inventory Capacity 15 | 8 15 15 15 Average Capacity 13 | 7 12 15 15 Most Carried 15 | 4 15 15 15 Average Carried 11 | 2 9 14 14 Final Capacity 15 | 8 15 15 15 Final Carried 15 | 4 15 14 15 Class Distribution -------------------- 81% | Mutant 14% | Derelict-Mutant 4% | Scavenger-Mutant Dominant Class ---------------- Mutant | -10/Materials Mutant | -10/Mines Mutant | -10/Subcaves Resources | -11 -10 -10 -10 ----------- Run | Yrd Mat Min Sub Matter Collected 832 | 260 190 152 230 Remotely . | . . . . Salvage Created 763 | . 340 96 327 Parts 51 | . 28 6 17 Haulers Intercepted 2 | . 2 . . Recyclers Shooed . | . . . . Parts Field Recycled . | . . . . Retrieved Matter . | . . . . Parts Self-Destructed 8 | . . . 8 Prevented . | . . . . Kills | -11 -10 -10 -10 ------- Run | Yrd Mat Min Sub Combat Hostiles Destroyed 16 | . 9 3 4 Guns 15 | . 8 3 4 AOE 1 | . 1 . . Classes Destroyed 5 | . 4 . 1 Hauler 2 | . 2 . . Watcher 2 | . 2 . . Swarmer 7 | . 6 1 . Grunt 5 | . 3 2 . Subdweller 4 | . . . 4 Best Kill Streak 3 | . 3 2 2 Combat Bots Only 2 | . 2 2 2 Max Kills in Single Turn 2 | . 2 1 1 Gunslinging 1 | . 1 . . Exploded 1 | . 1 . . Melee . | . . . . Uniques/NPCs Destroyed . | . . . . Combat | -11 -10 -10 -10 -------- Run | Yrd Mat Min Sub Hostile Shots Fired 107 | . 78 6 23 Missed 30 | . 19 2 9 Damage Taken 982 | . 630 60 292 Core 266 | . 148 16 102 Absorbed by Shields . | . . . . Core Remaining (%) 100 | 100 . . . Volleys Fired 88 | . 56 8 24 Largest 2 | . 2 2 2 Hottest 120 | . 120 40 53 Shots Fired 149 | . 86 17 46 Gun 140 | . 77 17 46 Cannon . | . . . . Launcher . | . . . . Special 9 | . 9 . . Kinetic 118 | . 55 17 46 Thermal 9 | . 9 . . Explosive . | . . . . Electromagnetic 22 | . 22 . . Robot Hit Streak 17 | . 7 8 17 Robot Miss Streak 6 | . 6 2 2 Penetration Max . | . . . . Secondary Targets 2 | . 1 1 . Max Gunslinging Chain 1 | . 1 1 . Shots Hit Robots 89 | . 43 11 35 Core Hits 40 | . 20 6 14 Critical Kills . | . . . . Critical Parts Destroyed . | . . . . Critical Strikes . | . . . . Melee Attacks . | . . . . Impact . | . . . . Slashing . | . . . . Piercing . | . . . . Sneak Attacks . | . . . . Combat Hostiles . | . . . . Follow-up Attacks . | . . . . Damage Inflicted 1390 | 2 706 126 556 Guns 1227 | . 555 116 556 Cannons . | . . . . Explosions 128 | . 128 . . Melee . | . . . . Ramming 35 | 2 23 10 . Kinetic 1033 | . 361 116 556 Thermal 128 | . 128 . . Explosive . | . . . . Electromagnetic 194 | . 194 . . Impact . | . . . . Slashing . | . . . . Piercing . | . . . . Highest Corruption 2 | . 2 2 2 Average Corruption 2 | . 2 2 2 Corruption Purged . | . . . . Corruption Blocked . | . . . . Effects 39 | . 22 5 12 Message Errors 12 | . 8 . 4 Matter Fused 7 | . 3 1 3 Heat Flow Errors 5 | . 4 1 . Energy Discharges 6 | . 3 2 1 Data Loss (minor) 3 | . 2 . 1 Data Loss (major) 3 | . 2 . 1 Misfires 1 | . . 1 . Weapon Failures 2 | . . . 2 Overload Shots . | . . . . Overflow Damage . | . . . . Projectiles . | . . . . Explosions . | . . . . Melee . | . . . . Knockbacks 2 | . . 2 . Impact 1 | . . 1 . Kinetic . | . . . . Secondary 1 | . . 1 . Self-Inflicted Damage 92 | . 92 . . Shots 2 | . 2 . . Rammed 8 | 1 5 2 . Targets Rammed 8 | 1 5 2 . Kicked . | . . . . Crushed . | . . . . Highest Temperature 232 | . 232 224 . Average Temperature 44 | . 42 53 . Received Heat Transfer 213 | . 108 33 72 Siege Activations . | . . . . Robots Corrupted 1 | . 1 . . Combat Hostiles . | . . . . Parts Fried 2 | . 2 . . Impact Corruptions 1 | . 1 . . Robots Melted . | . . . . Combat Hostiles . | . . . . Parts Melted . | . . . . Heat Transferred 100 | . 100 . . Parts Sabotaged . | . . . . Parts Stolen . | . . . . Parts Stripped . | . . . . Power Chain Reactions 2 | . 2 . . Alert | -11 -10 -10 -10 ------- Run | Yrd Mat Min Sub Peak Influence 208 | . 208 57 . Initial 2 | . . 2 . Average 40 | . 49 25 . Maximum Alert Level 1 | . 1 . . Low Security (%) 96 | 100 95 100 . Level 1 3 | . 4 . . Level 2 . | . . . . Level 3 . | . . . . Level 4 . | . . . . Level 5 . | . . . . High Security . | . . . . Max Security . | . . . . Squads Dispatched 2 | . 2 . . Investigation 1 | . 1 . . Extermination . | . . . . Reinforcement 1 | . 1 . . Assault . | . . . . Garrison . | . . . . Intercept . | . . . . Searches Triggered . | . . . . Construction Impeded . | . . . . Haulers Reinforced . | . . . . Active Scanning Responses . | . . . . Cargo Convoy Interrupts . | . . . . Stealth | -11 -10 -10 -10 --------- Run | Yrd Mat Min Sub Distress Signals . | . . . . Communications Jammed . | . . . . Distress Signals . | . . . . Times Spotted 34 | . 23 5 6 Peak Tracking Total 4 | . 4 2 2 Tactical Retreats 1 | . 1 . . Traps | -11 -10 -10 -10 ------- Run | Yrd Mat Min Sub Traps Triggered . | . . . . Indirectly . | . . . . Trap Hack Attempts . | . . . . Triggered . | . . . . Disarmed . | . . . . Reprogrammed . | . . . . Reused . | . . . . Traps Extracted . | . . . . Installed . | . . . . Triggered . | . . . . Machines | -11 -10 -10 -10 ---------- Run | Yrd Mat Min Sub Machines Disabled . | . . . . Max in Single Turn . | . . . . Machines Repaired . | . . . . Machines Dismantled . | . . . . Machines Sabotaged . | . . . . Overloaded Fab Kills . | . . . . Hacking | -11 -10 -10 -10 --------- Run | Yrd Mat Min Sub Machines Accessed 6 | . 6 . . Terminals 6 | . 6 . . Fabricators . | . . . . Repair Stations . | . . . . Recycling Units . | . . . . Scanalyzers . | . . . . Garrison Access . | . . . . Total Hacks 16 | . 16 . . Successful 3 | . 3 . . Failed 13 | . 13 . . Catastrophic 3 | . 3 . . Database Lockouts . | . . . . Manual 9 | . 9 . . Terminals 16 | . 16 . . Fabricators . | . . . . Repair Stations . | . . . . Recycling Units . | . . . . Scanalyzers . | . . . . Garrison Access . | . . . . Terminal Hacks 3 | . 3 . . Record 1 | . 1 . . Branch Access Points 1 | . 1 . . Surveillance Status 1 | . 1 . . Fabricator Hacks . | . . . . Repair Station Hacks . | . . . . Recycling Unit Hacks . | . . . . Scanalyzer . | . . . . Garrison Access Hacks . | . . . . Unauthorized Hacks . | . . . . Terminals . | . . . . Fabricators . | . . . . Repair Stations . | . . . . Recycling Units . | . . . . Scanalyzers . | . . . . Garrison Access . | . . . . Data Cores Recovered . | . . . . Used . | . . . . Hacking Detections 6 | . 6 . . Full Trace Events 2 | . 2 . . Feedback Events . | . . . . Feedback Blocked . | . . . . Robot Schematics Acquired . | . . . . Robots Built . | . . . . Authchips . | . . . . Time . | . . . . Total Robot Build Rating . | . . . . Part Schematics Acquired . | . . . . Parts Built . | . . . . Authchips . | . . . . Time . | . . . . Total Part Build Rating . | . . . . Parts Repaired . | . . . . Time . | . . . . Parts Recycled . | . . . . Recycled Matter . | . . . . Retrieved Matter . | . . . . Retrieved Components . | . . . . Parts Scanalyzed . | . . . . Part Schematics Acquired . | . . . . Parts Damaged . | . . . . Bothacking | -11 -10 -10 -10 ------------ Run | Yrd Mat Min Sub Used RIF Installer . | . . . . Robots Hacked . | . . . . Non-combat . | . . . . Combat . | . . . . Robot Hacks Applied . | . . . . Relay Couplers Released . | . . . . Fabnet Peak Effective % . | . . . . Robots Rewired . | . . . . Allies Hacked . | . . . . Hacks Repelled . | . . . . Allies | -11 -10 -10 -10 -------- Run | Yrd Mat Min Sub Total Allies . | . . . . Largest Group . | . . . . Highest-Rated Group . | . . . . Highest-Rated Ally . | . . . . Total Orders . | . . . . Ally Attacks . | . . . . Total Damage . | . . . . Kills . | . . . . Allies Corrupted . | . . . . Allies Melted . | . . . . Intel | -11 -10 -10 -10 ------- Run | Yrd Mat Min Sub Robot Analysis Total . | . . . . Derelict Logs Recovered 3 | . . 1 2 Drone Launches . | . . . . Drone Recoveries . | . . . . Exploration | -11 -10 -10 -10 ------------- Run | Yrd Mat Min Sub Turns Passed 3943 | 103 1934 716 1190 Spaces Moved 2302 | 63 1071 516 652 Core 13 | 13 . . . Treads 1519 | 50 1071 148 250 Legs 770 | . . 368 402 Wheels . | . . . . Hover . | . . . . Flight . | . . . . Fastest Speed 50 | 50 160 120 120 Average Speed 154 | 142 160 131 165 Slowest Speed 260 | 160 160 190 260 Overloaded Moves . | . . . . Propulsion Burnouts . | . . . . Robots Hopped . | . . . . Cave-ins Triggered . | . . . . Exploration Rate (%) 46 | 4 83 76 22 Regions Visited 3 Branch Regions 2 Pre-discovered Areas 1 | . . . 1 Known Exits Taken 2 | . 1 1 . Unknown Exits Taken 1 | 1 . . . Scrap Searched 6 | . . 1 5 Spaces Dug 5 | . 5 . . Terrain Destroyed 17 | . 17 . . Melee . | . . . . Projectile 6 | . 6 . . AOE 11 | . 11 . . Terrain Rammed 1 | . 1 . . Walls Destroyed . | . . . . Machines Disabled . | . . . . Actions | -11 -10 -10 -10 --------- Run | Yrd Mat Min Sub Total 2526 | 73 1192 538 723 Wait 24 | . 9 . 15 Move 2300 | 63 1070 515 652 Hop . | . . . . Pick Up 38 | 4 23 4 7 Fast Attach 11 | 6 2 . 3 Attach 1 | . 1 . . Detach 1 | . . . 1 Swap 18 | . 9 4 5 Drop 33 | . 16 5 12 Fire 88 | . 56 8 24 Melee . | . . . . Ram 1 | . 1 . . Kick . | . . . . Crush 7 | . 5 2 . Escape Stasis . | . . . . Rewire 4 | . . . 4 Trap . | . . . . Miscellaneous . | . . . . Route ------- -11/Scrapyard -10/Materials (discovered 5 exits: *Mat x3 / *Min x2) -10/Mines (discovered 3 exits: *Mat x2 / *Sub) -10/Subcaves History --------- Turn | Location | Event 11 | -11/Scrapyard | Discovered new exit (range 15) 104 | -11/Scrapyard | Entered Materials 314 | -10/Materials | Build established: Mutant 391 | -10/Materials | Discovered new exit (range 7) 871 | -10/Materials | Identified exit to Mines 1412 | -10/Materials | Discovered new exit (range 17) 1601 | -10/Materials | Core integrity fell below 50% 1742 | -10/Materials | Discovered new exit (range 13) 2038 | -10/Materials | Entered Mines 2048 | -10/Mines | Met a Derelict bent on vengeance 2088 | -10/Mines | Discovered new exit (range 11) 2129 | -10/Mines | Joined a pair of Derelicts in attacking an 0b10 outpost 2398 | -10/Mines | Learned Materials security intel 2425 | -10/Mines | Discovered new exit (range 13) 2463 | -10/Mines | Identified exit to Materials 2746 | -10/Mines | Discovered new exit (range 6) 2752 | -10/Mines | Identified exit to Subcaves 2754 | -10/Mines | Entered Subcaves 2757 | -10/Subcaves | Shifting Twisted Machinery released Flamer 2864 | -10/Subcaves | Shifting Twisted Machinery released Battle Rifle 3005 | -10/Subcaves | Core integrity fell below 20% 3100 | -10/Subcaves | Learned Materials emergency access door positions 3247 | -10/Subcaves | Disturbed a concealed Subdweller 3673 | -10/Subcaves | Build established: Derelict-Mutant 3944 | -10/Subcaves | Destroyed by D8-UXS(R) with Subdweller Laser Last Messages --------------- Found 37 Matter. Acquired 10 matter. Dropped Carbon-fiber Leg. Acquired Spk. Treads. Acquired 10 matter. |GN 3,OC=XPIS>FTYS7P System corrupted: Matter fused (-7). KK-HCL(R) destroyed. 7K-ZVA(R) destroyed. Acquired 42 matter. Acquired 7 matter. System corrupted: Battle Rifle jammed. Acquired 4 matter. Acquired 7 matter. Attempting to rewire X9-A0V(R). X9-A0V(R) is broken beyond repair. X9-A0V(R) destroyed. WHTJ>TBCUBL/BUAI< ZJSS8XFOJ Dropped Carbon-fiber Leg. Acquired Lgt. Treads. Map ----- +----------------------------------------------------+ | | | | | | | | | ?????????????????????????????????????????????????? | | ?????????????????????????????????????????????????? | | ?????????????????????????????????????????????????? | | ?????????????????????????????????????????????????? | | ?????????????????????????????????????????????????? | | ?????????????????????????????????????????????????? | | ?????????????????????????????????????????????????? | | ?????????????????????????????????????????????????? | | ?????????????????????????????????????????????????? | | ?????????????????????????????????????????????????? | | ?????????????????????????????????????????????????? | | ?????????????????????????????????????????????????? | | ?????????????????????????????????????????????????? | | ?????????????????????????????????????????????????? | | ??????????????????????????###????????????????????? | | ######????????????######## ###??????????????????? | | ##"""#????????????# # #??????????????????? | | """""###?########## #????????? #???????? | | "###"## ## # ### ##### # ###?????? | | # """ ## ?????? | | ????????? | | ## # @ # #?????????????????? | | ###### ############ ### #?????????????????? | | ?????#####??????????####??# ????????????? | | ??????????????????????????? #??????????? | | ????????????????????????????# ## #??????????? | | ????????????????????????????? RR#??? ????????? | | ?????????????????????????????? ##????? ?????? | | ??????????????????????????????? ????????? ?????? | | ???????????????????????????????? ????????????????? | | ????????????????????????????????? ???????????????? | | ??????????????????????????????????#??????????????? | | ?????????????????????????????????????????????????? | | ?????????????????????????????????????????????????? | | ?????????????????????????????????????????????????? | | ?????????????????????????????????????????????????? | | ?????????????????????????????????????????????????? | | ?????????????????????????????????????????????????? | | ?????????????????????????????????????????????????? | | ?????????????????????????????????????????????????? | | ?????????????????????????????????????????????????? | | ?????????????????????????????????????????????????? | | ?????????????????????????????????????????????????? | | ?????????????????????????????????????????????????? | | ?????????????????????????????????????????????????? | | ?????????????????????????????????????????????????? | +----------------------------------------------------+ Best States ------------- Heat Dissipation 25 Energy Generation 12 Energy Capacity 265 Matter Stores 300 Matter Capacity 300 Sight Range 21 Terrain Scan Density 10 ECM Strength 1 Evasion (%) 55 Recoil Reduction 2 Item Schematics ----------------- None Robot Schematics ------------------ None Fabricated ------------ Nothing Alien Tech Used ----------------- None Achievements -------------- None Challenges ------------ None Game ------ Seed FluxCompactSpecial Manual? 0 Play Time 00:24:24 Cumulative 10.3 hours Start 2024.05.18 @ 19:59:58 End 2024.05.18 @ 20:23:40 Sessions 1 Manual Loads 0 Difficulty Rogue Special Mode None Game No. 13 Rogue 8 Adventurer 5 Explorer 0 Win Type - Total 0 Types 0/0/0/0/0/0/0/0/0 Lore% 17 Gallery% 21 Achievement% 18 Wizard Run 0 Options --------- Layout 0 ASCII 0 Keyboard 0 Movement Arrows Keybinds 0 Fullscreen 1 Font 18/X11Bold Map View 76x50 Zoom Use 0% Tactical HUD 0 Map Filters NONE Filters NONE Steam 1 RUN: 747babb8-46f5-42d9-acd5-09f2a2c1fb20